bitfinex/quotes_BTCUSD_20250522
["timestamp","ask_amount","ask_price","bid_price","bid_amount"]
[1747896798322,0.4720047,110650.0,110640.0,0.73390252]
[1747896799398,0.4720047,110650.0,110640.0,0.71440252]
[1747896800156,0.4720047,110650.0,110640.0,0.49889021]
[1747896800541,0.4720047,110650.0,110640.0,0.71480252]
[1747896800757,0.4720047,110650.0,110640.0,0.47887105]
[1747896801579,0.19188728,110650.0,110640.0,0.67328336]
[1747896801789,0.18285011,110650.0,110640.0,1.55860592]
[1747896802016,0.20996163,110650.0,110640.0,0.69258336]
[1747896802214,0.21899913,110650.0,110640.0,0.69258336]
[1747896803509,0.2099622,110650.0,110640.0,0.69258336]
[1747896804134,0.20092503,110650.0,110640.0,0.69258336]
[1747896805726,0.19188761,110650.0,110640.0,0.69258336]
[1747896807538,0.45383011,110650.0,110640.0,0.49817105]
[1747896807756,0.45383011,110650.0,110640.0,0.47887105]
[1747896811031,0.46286753,110650.0,110640.0,0.47887105]
[1747896811270,0.46286753,110650.0,110640.0,0.49967105]
[1747896811693,0.4719047,110650.0,110640.0,0.49967105]
[1747896813874,0.46286753,110650.0,110640.0,0.49967105]
[1747896815662,0.45383011,110650.0,110640.0,0.45737105]
[1747896820386,0.47453011,110650.0,110640.0,0.45737105]
[1747896821692,0.49623011,110650.0,110640.0,0.45737105]
[1747896823742,0.49623011,110650.0,110640.0,0.26295874]
[1747896825479,0.58577567,110650.0,110620.0,0.08593851]
[1747896825719,0.58577567,110650.0,110620.0,0.04364653]
[1747896825720,0.24096048,110630.0,110620.0,0.04364653]
[1747896825938,0.88056048,110630.0,110620.0,0.23805884]
[1747896826160,0.83846048,110630.0,110620.0,0.23805884]
[1747896826608,0.88056048,110630.0,110620.0,0.57805884]
[1747896827323,0.88156048,110630.0,110620.0,0.57805884]
[1747896827546,1.06062755,110630.0,110620.0,0.04364653]
[1747896827757,0.72182604,110630.0,110620.0,0.04364653]
[1747896827964,1.35838604,110630.0,110620.0,0.04364653]
[1747896828177,0.72182604,110630.0,110620.0,0.04364653]
[1747896828378,1.35838604,110630.0,110620.0,0.04364653]
[1747896828588,1.45550299,110630.0,110620.0,0.04364653]
[1747896828791,1.45750299,110630.0,110620.0,0.04364653]
[1747896829228,1.36798148,110630.0,110620.0,0.04364653]
[1747896829453,0.92583379,110630.0,110620.0,0.04364653]
[1747896829667,1.36802148,110630.0,110620.0,0.04364653]
[1747896829874,0.73142148,110630.0,110620.0,0.04364653]
[1747896830082,1.36806148,110630.0,110620.0,0.04364653]
[1747896830708,1.36706148,110630.0,110620.0,0.04364653]
[1747896830916,1.36806148,110630.0,110620.0,0.04364653]
[1747896831122,1.36706148,110630.0,110620.0,0.04364653]
[1747896831329,1.36806148,110630.0,110620.0,0.04364653]
[1747896831886,1.35946604,110630.0,110620.0,0.04364653]
[1747896833680,0.20086048,110630.0,110620.0,0.23805884]
[1747896833894,0.20085982,110630.0,110620.0,0.59935884]
[1747896834107,0.20085982,110630.0,110620.0,0.62125884]
[1747896834326,0.18278278,110630.0,110620.0,1.58226192]
[1747896834545,0.18278278,110630.0,110620.0,1.68988698]
[1747896834734,0.18278278,110630.0,110620.0,1.9790859]
[1747896834735,0.18078278,110630.0,110620.0,1.9790859]
[1747896834978,0.18982118,110630.0,110620.0,1.95196727]
[1747896835222,0.19182118,110630.0,110620.0,1.76212835]
[1747896835428,0.19182118,110630.0,110620.0,1.69149122]
[1747896835634,0.18278278,110630.0,110620.0,1.69149122]
[1747896835852,0.19182118,110630.0,110620.0,1.70053101]
[1747896836061,0.19182118,110630.0,110620.0,1.69149122]
[1747896836263,0.19182118,110630.0,110620.0,1.70053101]
[1747896836506,0.19182118,110630.0,110620.0,1.69149122]
[1747896836736,0.19182118,110630.0,110620.0,1.61021014]
[1747896836946,0.19182118,110630.0,110620.0,1.60117035]
[1747896837161,0.19182118,110630.0,110620.0,1.59213048]
[1747896837373,0.20085966,110630.0,110620.0,1.59213048]
[1747896837831,0.18278278,110630.0,110620.0,1.67026073]
[1747896838041,0.18278278,110630.0,110620.0,1.66122102]
[1747896838244,0.19182118,110630.0,110620.0,1.44100589]
[1747896840371,0.18278278,110630.0,110620.0,1.45004551]
[1747896840718,0.18278278,110630.0,110620.0,1.44100589]
[1747896840927,0.18278278,110630.0,110620.0,0.97862409]
[1747896841139,0.20086048,110630.0,110620.0,0.30714938]
[1747896841338,0.20086088,110630.0,110620.0,0.30714938]
[1747896845044,0.18278278,110630.0,110620.0,0.32804938]
[1747896845282,0.20086015,110630.0,110620.0,0.97680738]
[1747896845500,0.18278278,110630.0,110620.0,1.515686]
[1747896845874,0.002,110630.0,110620.0,1.89443048]
[1747896846293,0.18278278,110630.0,110620.0,1.87635156]
[1747896847152,0.18278278,110630.0,110620.0,1.8853911]
[1747896847367,0.18278278,110630.0,110620.0,1.87635156]
[1747896847830,0.19182118,110630.0,110620.0,1.50639094]
[1747896848011,0.19182118,110630.0,110620.0,1.51543073]
[1747896850075,0.19182118,110630.0,110620.0,1.50639094]
[1747896850702,0.19182118,110630.0,110620.0,1.23527094]
[1747896851666,0.20085974,110630.0,110620.0,1.05447189]
[1747896852081,0.19182118,110630.0,110620.0,1.24431073]
[1747896852277,0.18278278,110630.0,110620.0,1.25335035]
[1747896852956,0.18278278,110630.0,110620.0,1.66238981]
[1747896853121,0.002,110630.0,110620.0,1.67142919]
[1747896853291,0.002,110630.0,110620.0,1.68597004]
[1747896854553,0.001,110630.0,110620.0,1.68597004]
[1747896855281,0.002,110630.0,110620.0,1.68597004]
[1747896855509,0.33110604,110630.0,110620.0,0.04364653]
[1747896855775,0.99038505,110630.0,110620.0,0.04364653]
[1747896855986,0.96866604,110630.0,110620.0,0.04364653]
[1747896856217,0.98189168,110630.0,110620.0,0.04364653]
[1747896856438,0.98289168,110630.0,110620.0,0.04364653]
[1747896857605,0.98189168,110630.0,110620.0,0.04364653]
[1747896857819,0.99089168,110630.0,110620.0,0.04364653]
[1747896858236,1.00289168,110630.0,110620.0,0.04464653]
[1747896858446,0.99289168,110630.0,110620.0,0.04464653]
[1747896858658,0.98089168,110630.0,110620.0,0.04364653]
[1747896858954,1.00589168,110630.0,110620.0,0.04464653]
[1747896859929,0.73481168,110630.0,110620.0,0.04464653]
[1747896860136,1.00589168,110630.0,110620.0,0.04464653]
[1747896861007,0.36933168,110630.0,110620.0,0.04464653]
[1747896861215,0.62718604,110630.0,110620.0,0.04464653]
[1747896862203,0.58448604,110630.0,110620.0,0.04464653]
[1747896863947,0.58448604,110630.0,110620.0,0.64814938]
[1747896864357,0.58448604,110630.0,110620.0,0.38464653]
[1747896864538,0.18983892,110620.0,110610.0,0.0287797]
[1747896864739,0.18983892,110620.0,110610.0,0.29454246]
[1747896864938,0.18983892,110620.0,110610.0,0.29228255]
[1747896865450,0.18079913,110620.0,110610.0,0.29228255]
[1747896865652,0.18079913,110620.0,110610.0,0.45722055]
[1747896865653,0.18983835,110620.0,110610.0,0.45722055]
[1747896865859,0.21191752,110620.0,110610.0,0.45922055]
[1747896866100,0.20287781,110620.0,110610.0,0.45922055]
[1747896866331,0.18279913,110620.0,110610.0,0.73762227]
[1747896866527,0.19183835,110620.0,110610.0,0.57750688]
[1747896866772,0.19283835,110620.0,110610.0,0.91950688]
[1747896866977,0.003,110620.0,110610.0,1.10936287]
[1747896867175,0.001,110620.0,110610.0,1.39756351]
[1747896867384,0.18179913,110620.0,110610.0,1.38852331]
[1747896867702,0.18279913,110620.0,110610.0,1.38048287]
[1747896867903,0.18279913,110620.0,110610.0,1.77948287]
[1747896868140,0.18279913,110620.0,110610.0,1.78048287]
[1747896868440,0.18379913,110620.0,110610.0,1.78048287]
[1747896868966,0.18379913,110620.0,110610.0,1.44048287]
[1747896869283,0.18379913,110620.0,110610.0,1.44048296]
[1747896869900,0.003,110620.0,110610.0,1.78048296]
[1747896870111,0.003,110620.0,110610.0,2.17934445]
[1747896870975,0.001,110620.0,110610.0,2.17834445]
[1747896871179,0.19033595,110630.0,110620.0,0.05303979]
[1747896871382,0.19033595,110630.0,110620.0,2.0748712]
[1747896871798,0.19033595,110630.0,110620.0,2.12571728]
[1747896872003,0.19033595,110630.0,110620.0,1.81137628]
[1747896872381,0.19033595,110630.0,110620.0,1.63757728]
[1747896872937,0.19033595,110630.0,110620.0,1.64661707]
[1747896873138,0.19033595,110630.0,110620.0,1.63757728]
[1747896874215,0.19033595,110630.0,110620.0,1.63857728]
[1747896875679,0.19937443,110630.0,110620.0,1.97857728]
[1747896875892,0.19937443,110630.0,110620.0,1.97857736]
[1747896876252,0.19937443,110630.0,110620.0,1.98761723]
[1747896876679,0.19937443,110630.0,110620.0,1.96953741]
[1747896876900,0.19937443,110630.0,110620.0,1.98761723]
[1747896877227,0.20841299,110630.0,110620.0,1.94005736]
[1747896877341,0.20841299,110630.0,110620.0,1.94909723]
[1747896877581,0.20841299,110630.0,110620.0,1.94005736]
[1747896877997,0.19033619,110630.0,110620.0,1.00450285]
[1747896878203,0.1903366,110630.0,110620.0,1.00450285]
[1747896878414,0.1903366,110630.0,110620.0,0.60450285]
[1747896878621,0.1903366,110630.0,110620.0,0.26450285]
[1747896880458,0.1903366,110630.0,110620.0,1.00450285]
[1747896883508,0.5043166,110630.0,110620.0,0.341]
[1747896884571,0.5043166,110630.0,110620.0,0.001]
[1747896885419,0.22419755,110630.0,110620.0,0.60450285]
[1747896885634,0.18129755,110630.0,110620.0,1.58792285]
[1747896885842,0.20841348,110630.0,110620.0,1.51775285]
[1747896886047,0.21745229,110630.0,110620.0,1.43204285]
[1747896886281,0.00050826,110630.0,110620.0,1.7204672]
[1747896886531,0.18129104,110630.0,110620.0,1.52158841]
[1747896886761,0.20840697,110630.0,110620.0,0.60450285]
[1747896886994,0.1993689,110630.0,110620.0,0.60450285]
[1747896887349,0.19033001,110630.0,110620.0,1.00450285]
[1747896888649,0.18129104,110630.0,110620.0,0.60450285]
[1747896888856,0.22399104,110630.0,110620.0,0.341]
[1747896889550,0.49507104,110630.0,110620.0,0.341]
[1747896891153,0.49507104,110630.0,110620.0,0.60450285]
[1747896893718,0.49511104,110630.0,110620.0,0.60450285]
[1747896896672,0.47401104,110630.0,110620.0,0.60450285]
[1747896898864,0.49611104,110630.0,110620.0,0.60450285]
[1747896899723,0.49611104,110630.0,110620.0,0.001]
[1747896899865,0.49611104,110630.0,110620.0,0.26450285]
[1747896904642,0.5856566,110630.0,110620.0,0.001]
[1747896906818,0.5856566,110630.0,110620.0,0.26450285]
[1747896907237,0.5856566,110630.0,110620.0,0.001]
[1747896907238,0.9997566,110630.0,110620.0,0.001]
[1747896908958,1.00835915,110630.0,110620.0,0.001]
[1747896910110,0.18985599,110610.0,110600.0,0.43845304]
[1747896910242,0.1988966,110610.0,110600.0,0.43845304]
[1747896911437,0.1998966,110610.0,110600.0,0.44145304]
[1747896911847,0.19085608,110610.0,110600.0,0.44145304]
[1747896912517,0.19185608,110610.0,110600.0,0.44445304]
[1747896912747,0.6571994,110610.0,110580.0,0.04149435]
[1747896912980,0.24203241,110590.0,110580.0,0.04149435]
[1747896913218,0.51315241,110590.0,110580.0,0.04149435]
[1747896913442,0.60759241,110590.0,110580.0,0.03426381]
[1747896913702,0.24203241,110590.0,110580.0,0.03426381]
[1747896914153,0.51315241,110590.0,110580.0,0.38026381]
[1747896914423,0.51315241,110590.0,110580.0,0.64476666]
[1747896914424,0.19944035,110590.0,110580.0,0.64476666]
[1747896914616,0.19944035,110590.0,110580.0,0.60727231]
[1747896914828,0.47056035,110590.0,110580.0,0.34376946]
[1747896915789,0.47056035,110590.0,110580.0,0.34276946]
[1747896916272,0.51646035,110590.0,110580.0,0.00276946]
[1747896917439,0.60600591,110590.0,110580.0,0.00276946]
[1747896918237,0.60600591,110590.0,110530.0,0.63676]
[1747896918238,0.0090442,110560.0,110530.0,0.63676]
[1747896918484,0.1899494,110560.0,110550.0,0.26350285]
[1747896918723,0.1899494,110560.0,110550.0,0.45795841]
[1747896918958,0.19899377,110560.0,110550.0,0.45795841]
[1747896919136,0.20803838,110560.0,110550.0,0.35304841]
[1747896919358,0.21708316,110560.0,110550.0,0.26350285]
[1747896919600,0.21708316,110560.0,110550.0,0.36514985]
[1747896919814,0.21808316,110560.0,110550.0,0.36514985]
[1747896920027,0.1909494,110560.0,110550.0,0.36514985]
[1747896920239,0.001,110560.0,110550.0,0.71819826]
[1747896920448,0.002,110560.0,110550.0,0.71819826]
[1747896920860,0.001,110560.0,110550.0,0.71819826]
[1747896921287,0.002,110560.0,110550.0,0.76209826]
[1747896921727,0.19194153,110560.0,110550.0,0.49859541]
[1747896921929,0.18289725,110560.0,110550.0,0.77145841]
[1747896922103,0.21003084,110560.0,110550.0,0.72755841]
[1747896922313,0.21003084,110560.0,110550.0,0.40585285]
[1747896922514,0.21003084,110560.0,110550.0,0.26350285]
[1747896923272,0.2190757,110560.0,110550.0,0.26350285]
[1747896923483,0.20098606,110560.0,110550.0,0.41891585]
[1747896923870,0.19194153,110560.0,110550.0,0.42796153]
[1747896924085,0.21003051,110560.0,110550.0,0.41891585]
[1747896924285,0.21907529,110560.0,110550.0,0.41891585]
[1747896924490,0.21003051,110560.0,110550.0,0.41891585]
[1747896924701,0.002,110560.0,110550.0,1.09941106]
[1747896924909,0.18289725,110560.0,110550.0,1.08132061]
[1747896925109,0.19194145,110560.0,110550.0,1.08132061]
[1747896925755,0.20098574,110560.0,110550.0,0.84846141]
[1747896926147,0.19194137,110560.0,110550.0,0.857507]
[1747896926859,0.20098557,110560.0,110550.0,0.878507]
[1747896927055,0.21003002,110560.0,110550.0,0.80043741]
[1747896927407,0.27041941,110560.0,110550.0,0.60350285]
[1747896927615,0.26137537,110560.0,110550.0,0.60350285]
[1747896928429,0.26137537,110560.0,110550.0,0.34]
[1747896928659,0.23237574,110540.0,110530.0,0.0091143]
[1747896928923,0.2414219,110540.0,110530.0,0.58356371]
[1747896929175,0.20806815,110540.0,110530.0,1.12890241]
[1747896929394,0.20806815,110540.0,110530.0,1.13814525]
[1747896929619,0.20806815,110540.0,110530.0,0.70229125]
[1747896929839,0.26121448,110540.0,110530.0,0.71071657]
[1747896930052,0.25267578,110540.0,110530.0,0.71071657]
[1747896930298,0.25267578,110540.0,110530.0,0.35766816]
[1747896930505,0.25267578,110540.0,110530.0,0.62117101]
[1747896930506,0.48081578,110540.0,110530.0,0.62117101]
[1747896930723,0.49086227,110540.0,110530.0,0.62417101]
[1747896930952,0.45467761,110540.0,110530.0,1.55577401]
[1747896931152,0.45467761,110540.0,110530.0,1.75481481]
[1747896931367,0.20152937,110540.0,110530.0,1.56482132]
[1747896931587,0.20152937,110540.0,110530.0,1.55577401]
[1747896931797,0.20152929,110540.0,110530.0,1.56482132]
[1747896932226,0.20052929,110540.0,110530.0,1.3103657]
[1747896932351,0.20052929,110540.0,110530.0,1.56482132]
[1747896932578,0.20052929,110540.0,110530.0,1.36470032]
[1747896932807,0.20152929,110540.0,110530.0,1.35765301]
[1747896933410,0.20152929,110540.0,110530.0,1.33381932]
[1747896933635,0.20152929,110540.0,110530.0,1.06126916]
[1747896933835,0.21057537,110540.0,110530.0,1.24922769]
[1747896934037,0.21057546,110540.0,110530.0,1.11902769]
[1747896934245,0.26252187,110540.0,110530.0,0.61474569]
[1747896934460,0.26252187,110540.0,110530.0,0.27474569]
[1747896934715,0.24443019,110540.0,110530.0,0.26550285]
[1747896935146,0.24443019,110540.0,110530.0,0.60550285]
[1747896935572,0.60995019,110540.0,110530.0,0.00842787]
[1747896935784,0.69949575,110540.0,110530.0,0.00842787]
[1747896936657,0.69849575,110540.0,110530.0,0.00842787]
[1747896937063,0.69849575,110540.0,110530.0,0.00942787]
[1747896937276,0.69949575,110540.0,110530.0,0.00942787]
[1747896937475,0.7084474,110540.0,110530.0,0.00942787]
[1747896937774,0.7084474,110540.0,110530.0,0.001]
[1747896938183,0.69949575,110540.0,110530.0,0.001]
[1747896939176,0.33397575,110540.0,110530.0,0.001]
[1747896939374,0.97081575,110540.0,110530.0,0.001]
[1747896939597,0.24443019,110540.0,110530.0,0.001]
[1747896939788,0.88131019,110540.0,110530.0,0.00326162]
[1747896940541,0.88131019,110540.0,110530.0,0.001]
[1747896941876,0.24443019,110540.0,110530.0,0.001]
[1747896942074,0.88131019,110540.0,110530.0,0.001]
[1747896943731,0.24443019,110540.0,110530.0,0.001]
[1747896943888,0.88135019,110540.0,110530.0,0.001]
[1747896948280,0.49515019,110540.0,110530.0,0.26450285]
[1747896948653,0.22383019,110540.0,110530.0,0.26450285]
[1747896949017,0.19248353,110540.0,110530.0,0.26450285]
[1747896949214,0.21057611,110540.0,110530.0,0.26450285]
[1747896950528,0.2015297,110540.0,110530.0,0.29010285]
[1747896950745,0.21057611,110540.0,110530.0,0.26450285]
[1747896951608,0.00250763,110540.0,110530.0,0.26450285]
[1747896951802,0.19248337,110540.0,110530.0,2.80742041]
[1747896952010,0.21057586,110540.0,110530.0,0.74334841]
[1747896952222,0.21057586,110540.0,110530.0,0.98490941]
[1747896952367,0.20153002,110540.0,110530.0,0.341]
[1747896952574,0.19048394,110540.0,110530.0,0.34]
[1747896952772,0.19148394,110540.0,110530.0,0.34]
[1747896952987,0.00250763,110540.0,110530.0,0.96998937]
[1747896953190,0.18343761,110540.0,110530.0,1.14188913]
[1747896953391,0.19248345,110540.0,110530.0,0.94284841]
[1747896953596,0.18343761,110540.0,110530.0,0.95189572]
[1747896953995,0.18343761,110540.0,110530.0,0.94284841]
[1747896954775,0.19248353,110540.0,110530.0,0.88238741]
[1747896954994,0.19248353,110540.0,110530.0,0.84702741]
[1747896957225,0.18343761,110540.0,110530.0,0.84702741]
[1747896957427,0.19248345,110540.0,110530.0,0.87192741]
[1747896959006,0.20152945,110540.0,110530.0,0.87192741]
[1747896959317,0.20152953,110540.0,110530.0,0.87192741]
[1747896959481,0.20152953,110540.0,110530.0,1.11834741]
[1747896959711,0.20152945,110540.0,110530.0,1.11834741]
[1747896960118,0.20152945,110540.0,110530.0,0.82182741]
[1747896960349,0.20152945,110540.0,110530.0,0.85035341]
[1747896960970,0.21057562,110540.0,110530.0,0.85035341]
[1747896961883,0.20152945,110540.0,110530.0,0.85035341]
[1747896962098,0.20152953,110540.0,110530.0,0.58685056]
[1747896962308,0.20152953,110540.0,110530.0,0.85035341]
[1747896963440,0.19248345,110540.0,110530.0,0.85035341]
[1747896963701,0.20152953,110540.0,110530.0,0.85035341]
[1747896968797,0.2361757,110540.0,110530.0,0.76080785]
[1747896969006,0.24522203,110540.0,110530.0,0.76080785]
[1747896969182,0.24522203,110540.0,110530.0,0.60350285]
[1747896969562,0.24522211,110540.0,110530.0,0.87033985]
[1747896969758,0.24522211,110540.0,110530.0,0.84233985]
[1747896970297,0.27142211,110540.0,110530.0,0.83513785]
[1747896971062,0.21057578,110540.0,110530.0,0.83513785]
[1747896971271,0.21962219,110540.0,110530.0,0.83513785]
[1747896972897,0.21057586,110540.0,110530.0,0.83513785]
[1747896973481,0.23527586,110540.0,110530.0,0.83513785]
[1747896975516,0.23527578,110540.0,110530.0,0.83513785]
[1747896975726,0.26067627,110540.0,110530.0,0.83513785]
[1747896975929,0.26972276,110540.0,110530.0,1.05413485]
[1747896976141,0.26067627,110540.0,110530.0,1.05413485]
[1747896976362,0.26972276,110540.0,110530.0,1.05413485]
[1747896976595,0.21718345,110540.0,110530.0,1.05413485]
[1747896976806,0.22622945,110540.0,110530.0,1.05413485]
[1747896977128,0.2352757,110540.0,110530.0,1.05413485]
[1747896978286,0.2611757,110540.0,110530.0,1.05413485]
[1747896979932,0.20152945,110540.0,110530.0,1.05413485]
[1747896980134,0.19248345,110540.0,110530.0,1.05413485]
[1747896980416,0.21057562,110540.0,110530.0,1.05413485]
[1747896980640,0.20152945,110540.0,110530.0,1.05413485]
[1747896980833,0.21057553,110540.0,110530.0,1.05413485]
[1747896981068,0.2196217,110540.0,110530.0,1.05413485]
[1747896981674,0.2719217,110540.0,110530.0,1.05413485]
[1747896981908,0.27131564,110540.0,110530.0,1.05413485]
[1747896983743,0.27131613,110540.0,110530.0,1.01710785]
[1747896983947,0.27131613,110540.0,110530.0,0.97788585]
[1747896984149,0.2622698,110540.0,110530.0,0.97788585]
[1747896984670,0.25322363,110540.0,110530.0,0.92558585]
[1747896984880,0.24417731,110540.0,110530.0,0.92558585]
[1747896985109,0.25322331,110540.0,110530.0,0.92558585]
[1747896985566,0.26226948,110540.0,110530.0,0.92558585]
[1747896985769,0.25322331,110540.0,110530.0,0.92558585]
[1747896985943,0.27131572,110540.0,110530.0,0.92558585]
[1747896986175,0.26226956,110540.0,110530.0,0.92558585]
[1747896986379,0.27131597,110540.0,110530.0,0.92558585]
[1747896986793,0.27131597,110540.0,110530.0,0.60350285]
[1747896986794,0.26226956,110540.0,110530.0,0.60350285]
[1747896987216,0.27131597,110540.0,110530.0,0.60350285]
[1747896987430,0.27131597,110540.0,110530.0,0.79671185]
[1747896987633,0.26226956,110540.0,110530.0,0.60350285]
[1747896987860,0.27131597,110540.0,110530.0,0.53487455]
[1747896988071,0.27131597,110540.0,110510.0,0.20394718]
[1747896988072,0.18096272,110520.0,110510.0,0.20394718]
[1747896988285,0.18096272,110520.0,110510.0,0.43542874]
[1747896988286,0.19001011,110520.0,110510.0,0.43542874]
[1747896988503,0.18096272,110520.0,110510.0,0.77542874]
[1747896988716,0.19001011,110520.0,110510.0,0.77542874]
[1747896989107,0.18096272,110520.0,110510.0,0.77542874]
[1747896989303,0.20886272,110520.0,110510.0,0.74546074]
[1747896989944,0.20886272,110520.0,110510.0,0.73638811]
[1747896990148,0.20986272,110520.0,110510.0,0.73838811]
[1747896990947,0.2189102,110520.0,110510.0,0.73838811]
[1747896991915,0.20986272,110520.0,110510.0,0.73838811]
[1747896992119,0.18296272,110520.0,110510.0,0.94231161]
[1747896992326,0.18296272,110520.0,110510.0,0.93326266]
[1747896993001,0.18296272,110520.0,110510.0,1.20458266]
[1747896993918,0.27085377,110520.0,110510.0,0.19887455]
[1747896994134,0.26180638,110520.0,110510.0,0.19887455]
[1747896997313,0.24371028,110520.0,110510.0,0.3937491]
[1747896997514,0.25275808,110520.0,110510.0,0.19887455]
[1747896997720,0.20876272,110520.0,110510.0,0.57472819]
[1747896997892,0.24471011,110520.0,110510.0,0.5968991]
[1747896998127,0.25375775,110520.0,110510.0,0.40202455]
[1747896998837,0.26280564,110520.0,110510.0,0.19887455]
[1747896999081,0.27185361,110520.0,110510.0,0.19887455]
[1747896999326,0.28090174,110520.0,110510.0,0.19887455]
[1747896999988,0.26280564,110520.0,110510.0,0.7954281]
[1747897000212,0.26280564,110520.0,110510.0,0.60055355]
[1747897000351,0.27185369,110520.0,110510.0,0.46475755]
[1747897000595,0.27185369,110520.0,110510.0,0.38268755]
[1747897002816,0.26280555,110520.0,110510.0,0.38268755]
[1747897003524,0.27185352,110520.0,110510.0,0.38268755]
[1747897006834,0.18097909,110510.0,110490.0,0.92790233]
[1747897006993,0.18097909,110510.0,110500.0,1.93406215]
[1747897007196,0.18097909,110510.0,110500.0,1.94989957]
[1747897007471,0.18097909,110510.0,110500.0,0.87054235]
[1747897007708,0.18097909,110510.0,110500.0,0.88864156]
[1747897007880,0.18097909,110510.0,110500.0,0.87959204]
[1747897008085,0.18097909,110510.0,110500.0,0.88864164]
[1747897008291,0.18297909,110510.0,110500.0,0.89164164]
[1747897008754,0.001,110510.0,110500.0,1.15731475]
[1747897009167,0.002,110510.0,110500.0,1.15931475]
[1747897010119,0.002,110510.0,110500.0,1.49931475]
[1747897012544,0.002,110510.0,110500.0,1.86128475]
[1747897013694,0.002,110510.0,110500.0,1.88843075]
[1747897016821,0.002,110510.0,110500.0,1.86203075]
[1747897017378,0.002,110510.0,110500.0,1.8710764]
[1747897017581,0.002,110510.0,110500.0,1.8447764]
[1747897021584,0.60529605,110530.0,110500.0,1.8447764]
[1747897021585,0.50598257,110530.0,110520.0,0.53905874]
[1747897021865,0.50598257,110530.0,110520.0,1.86835379]
[1747897022087,0.50598257,110530.0,110520.0,1.97456287]
[1747897022291,0.23466257,110530.0,110520.0,1.983611]
[1747897022495,0.23466257,110530.0,110520.0,1.7845521]
[1747897022909,0.23566257,110530.0,110520.0,1.7845521]
[1747897023127,0.32592947,110530.0,110520.0,0.55680455]
[1747897023774,0.32692947,110530.0,110520.0,0.55780455]
[1747897024425,0.32592947,110530.0,110520.0,0.55780455]
[1747897024601,0.32492947,110530.0,110520.0,0.55680455]
[1747897024833,0.32592947,110530.0,110520.0,0.55680455]
[1747897025041,0.32692947,110530.0,110520.0,0.55780455]
[1747897026267,0.25475662,110530.0,110520.0,0.55780455]
[1747897027517,0.70878218,110530.0,110520.0,0.36293]
[1747897027735,0.70878218,110530.0,110520.0,0.55780455]
[1747897030306,0.70878218,110530.0,110520.0,0.36293]
[1747897030509,0.70878218,110530.0,110520.0,0.55780455]
[1747897032250,1.52621588,110530.0,110520.0,0.36293]
[1747897032480,1.52621588,110530.0,110520.0,0.19973]
[1747897032481,2.42279043,110530.0,110520.0,0.19973]
[1747897032693,0.21171245,110490.0,110480.0,0.20487455]
[1747897032901,0.83495245,110490.0,110480.0,0.60487455]
[1747897033117,0.83495245,110490.0,110480.0,0.62266346]
[1747897033355,0.46142178,110490.0,110480.0,0.87043801]
[1747897033578,0.4614185,110500.0,110490.0,0.0535]
[1747897033816,0.19911188,110490.0,110480.0,0.08128891]
[1747897034022,0.1900617,110490.0,110480.0,0.27616346]
[1747897034227,0.47952181,110490.0,110480.0,0.27667109]
[1747897034656,0.48857215,110490.0,110480.0,0.27667109]
[1747897034871,0.49762266,110490.0,110480.0,0.27667109]
[1747897035069,0.49862266,110490.0,110480.0,0.27667109]
[1747897035276,0.49862274,110490.0,110480.0,0.27667109]
[1747897035687,0.49862266,110490.0,110480.0,0.27667109]
[1747897035927,0.48957281,110490.0,110480.0,0.27667109]
[1747897036132,0.48957281,110490.0,110480.0,0.26820653]
[1747897036965,0.4815223,110490.0,110480.0,0.26820653]
[1747897037179,0.49057281,110490.0,110480.0,0.26820653]
[1747897037380,0.48152238,110490.0,110480.0,0.26820653]
[1747897037574,0.49057297,110490.0,110480.0,0.26820653]
[1747897038344,0.48152304,110490.0,110480.0,0.26820653]
[1747897038748,0.48152304,110490.0,110480.0,0.27665093]
[1747897038955,0.4815223,110490.0,110480.0,0.27665093]
[1747897039157,0.49057281,110490.0,110480.0,0.27665093]
[1747897039688,0.49057281,110490.0,110480.0,0.26820653]
[1747897041200,0.49057289,110490.0,110480.0,0.26820653]
[1747897041518,0.4815223,110490.0,110480.0,0.26820653]
[1747897041722,0.49057281,110490.0,110480.0,0.26820653]
[1747897042062,0.48152288,110490.0,110480.0,0.26820653]
[1747897042271,0.49057347,110490.0,110480.0,0.26820653]
[1747897043689,0.48152329,110490.0,110480.0,0.26820653]
[1747897044156,0.47247295,110490.0,110480.0,0.01983198]
[1747897044357,0.47247295,110490.0,110480.0,0.21470653]
[1747897045212,0.47247295,110490.0,110480.0,0.24230653]
[1747897045415,0.47247295,110490.0,110480.0,0.27090653]
[1747897045622,0.47247262,110490.0,110480.0,0.34022845]
[1747897046671,0.20111212,110490.0,110480.0,0.34022845]
[1747897046839,0.47251204,110490.0,110480.0,0.34022845]
[1747897047201,0.48156246,110490.0,110480.0,0.34022845]
[1747897047815,0.49061305,110490.0,110480.0,0.34022845]
[1747897049316,0.49061305,110490.0,110480.0,0.74022845]
[1747897049496,0.48156246,110490.0,110480.0,0.74022845]
[1747897049736,0.49061305,110490.0,110480.0,0.74022845]
[1747897050573,0.47251204,110490.0,110480.0,0.74022845]
[1747897050786,0.48156246,110490.0,110480.0,0.74022845]
[1747897051414,0.47251245,110490.0,110480.0,0.01983198]
[1747897051833,0.47251245,110490.0,110480.0,0.41983198]
[1747897052267,0.47251245,110490.0,110480.0,0.68402845]
[1747897052509,0.47251245,110490.0,110480.0,0.6924771]
[1747897052971,0.47251245,110490.0,110480.0,0.42828063]
[1747897053207,0.47251245,110490.0,110480.0,0.01895628]
[1747897053208,1.29527801,110490.0,110480.0,0.01895628]
[1747897053420,1.29527801,110490.0,110480.0,0.01050763]
[1747897053848,1.30386027,110490.0,110480.0,0.01050763]
[1747897054188,1.30186027,110490.0,110480.0,0.01050763]
[1747897054400,1.30986027,110490.0,110480.0,0.01050763]
[1747897055604,1.31905242,110490.0,110480.0,0.01050763]
[1747897056459,0.68353242,110490.0,110480.0,0.01050763]
[1747897056720,1.65002793,110490.0,110480.0,0.01050763]
[1747897056864,1.33367327,110490.0,110480.0,0.01050763]
[1747897057280,1.34707655,110490.0,110480.0,0.01050763]
[1747897057482,0.71147655,110490.0,110480.0,0.01050763]
[1747897057686,1.3325357,110490.0,110480.0,0.01050763]
[1747897059865,0.68280355,110490.0,110480.0,0.2747041]
[1747897060050,0.95424355,110490.0,110480.0,0.01050763]
[1747897060501,0.99566129,110490.0,110480.0,0.01050763]
[1747897060718,0.99566129,110490.0,110480.0,0.03760763]
[1747897060948,0.72422129,110490.0,110480.0,0.03760763]
[1747897061190,0.99570129,110490.0,110480.0,0.03760763]
[1747897061419,0.63467573,110490.0,110480.0,0.3300041]
[1747897061634,0.90615573,110490.0,110480.0,0.3300041]
[1747897061839,0.27051573,110490.0,110480.0,0.3300041]
[1747897062048,0.52859245,110490.0,110480.0,0.3300041]
[1747897062497,0.47859245,110490.0,110480.0,0.3300041]
[1747897063397,0.20711245,110490.0,110480.0,0.3300041]
[1747897063603,0.46954227,110490.0,110480.0,0.3300041]
[1747897063803,0.19806227,110490.0,110480.0,0.3300041]
[1747897063971,0.46954227,110490.0,110480.0,0.3300041]